Workbook

Sheet Introduction
G1: =RIGHT(CELL("filename",A1), LEN(CELL("filename",A1)) - SEARCH("]", CELL("filename",A1))) -> Introduction | Q1: =CELL("filename",A1) -> C:\Users\Hugo\Documents\HP ACAD\library\CASEShp\Risk (VaR) - FundX VaR\[HPcase (2012) - Risk (VaR) - FundX VaR.xlsm]Introduction | R1: =MID(Q1,FIND(CHAR(127),SUBSTITUTE(Q1,"-",CHAR(127), LEN(Q1)-LEN(SUBSTITUTE(Q1,"-",""))))+2,1024) -> FundX VaR.xlsm]Introduction
G2: by Hugues Pirotte
D4: Below is a list of the worksheets of the file, by order of appearance: (CTRL+h = back to "Introduction") | H4: =LEFT(R1,SEARCH(".",R1)-1) -> FundX VaR
C5: 1 | D5: Introduction | H5: Matthew Mackenzie and Kevin Larsson from Monkey Holdings are managing an improbable fund,
C6: 2 | D6: Fund | H6: presented in the sheet "Fund".
C7: 3 | D7: Data (raw) | H7: An auditor has recently told them that they should report on the VaR of the fund.
C8: 4 | D8: Data (restated) | H8: Question 1 | I8: Compute the VaR under the 3 methods: var-covar, historical simulations and MC simulations.
C9: 5 | D9: Stats | H9: Question 2 | I9: What are the reasons of the differences appearing in the results between the 3 methods?
C10: 6 | D10: VarCovar | H10: The sheets present the following information:
C11: 7 | D11: Historical simulations | H11: Fund | K11: All the pricing information with the latest prices (cf Data) to give you a thorough view about the values in play.
C12: 8 | D12: MC simulations (random data) | H12: Data (raw) | K12: The raw data dorectly downloaded from a market data source, here Bloomberg.
C13: 9 | D13: MC simulations (calculations) | H13: Data (restated) | K13: An empty sheet to allow you to "restate" the data the way you need it before using it.
K14: For example, FX rates must be stated in EUR terms and in the right direction,
K15: bond prices must be computed, etc…
K16: The idea is to be able to compute easily the required "stats" in "Stats" thereafter.
H17: Stats | K17: Once the "Data (restated)" shows the data in the right format and order, you can easily compute returns, volatilities and correlations.
H18: VarCovar | K18: The simple sheet that you need to produce the var-covar estimates. Feel free to complement the VaR calculation as you wish…
H19: Historical simulations | K19: Reprice the portfolio under the various scenarios inspired from past returns or changes in rates…
H20: MC simulations (random data) | K20: 2 sheets are available: this first sheet should allow you to produce the random values you need.
H21: MC simulations (calculations) | K21: This sheet can be used in the same way as for the historical simulation, i.e. repricing everything, but using the simulated scenarios this time.
H23: Good luck and don't worry… I know the MC simulation won't be easy and is subject to many considerations.
H24: Keep it easy and I will come back to you to explain you what can be further done.

Sheet Fund
A1: =LEFT(S1,SEARCH(".",S1)-1) & " > " & RIGHT(R1, LEN(R1) - SEARCH("]", R1)) -> FundX VaR > Fund | R1: =CELL("filename",A1) -> C:\Users\Hugo\Documents\HP ACAD\library\CASEShp\Risk (VaR) - FundX VaR\[HPcase (2012) - Risk (VaR) - FundX VaR.xlsm]Fund | S1: =MID(R1,FIND(CHAR(127),SUBSTITUTE(R1,"-",CHAR(127), LEN(R1)-LEN(SUBSTITUTE(R1,"-",""))))+2,1024) -> FundX VaR.xlsm]Fund
B3: C | D3: Current date: 6.04.2012 (April 6th, 2012)
D5: Asset | E5: Description | F5: Quantity (thousands shares) | G5: Market value | H5: Yield(%) | J5: Currency | N5: Year | O5: US Spot rates | P5: EU Spot rates | Q5: US Bond | R5: EU Bond | S5: US Bond | T5: EU Bond
D6: 1 | E6: Fund replicating the MSCI Europe Index | F6: 2 | G6: 500 | I6: =F6*G6 -> 1000 | J6: EUR | K6: =F6*G6*VLOOKUP(J6,$E$27:$F$30,2,FALSE) -> 1000 | L6: EUR | N6: 1 | P6: 0.247 | R6: 3 | T6: =R6/(1+P6/100)^$N6 -> 2.992608258
D7: 2 | E7: Nestlé | F7: 22 | G7: 55.95 | I7: =F7*G7 -> 1230.9 | J7: CHF | K7: =F7*G7*VLOOKUP(J7,$E$27:$F$30,2,FALSE) -> 1024.159174 | L7: EUR | N7: 2 | P7: 0.138 | R7: 3 | T7: 2.991737108
D8: 3 | E8: Solvay | F8: 12 | G8: 87.44 | I8: 1049.28 | J8: EUR | K8: 1049.28 | L8: EUR | N8: 3 | P8: 0.247 | R8: 103 | T8: 102.2405249
D9: 4 | E9: Danone | F9: 20 | G9: 51.63 | I9: 1032.6 | J9: EUR | K9: 1032.6 | L9: EUR | N9: 10 | O9: 2.055 | Q9: 100 | S9: =Q9/(1+O9/100)^$N9 -> 81.59379435
D10: 5 | E10: Novartis | F10: 25 | G10: 50.45 | I10: 1261.25 | J10: CHF | K10: 1049.411616 | L10: EUR | S10: =SUM(S6:S9) -> 81.59379435 | T10: =SUM(T6:T9) -> 108.2248703
D11: 6 | E11: Repsol | F11: 57 | G11: 18.085 | I11: 1030.845 | J11: EUR | K11: 1030.845 | L11: EUR
D12: 7 | E12: Renault | F12: 27 | G12: 37.975 | I12: 1025.325 | J12: EUR | K12: 1025.325 | L12: EUR | T12: =-T10 -> -108.2248703
D13: 8 | E13: Daimler | F13: 24 | G13: 42.855 | I13: 1028.52 | J13: EUR | K13: 1028.52 | L13: EUR | T13: =R6 -> 3
D14: 9 | E14: Henkel | F14: 19 | G14: 53.67 | I14: 1019.73 | J14: EUR | K14: 1019.73 | L14: EUR | T14: =R7 -> 3
D15: 10 | E15: Siemens | F15: 14 | G15: 73.88 | I15: 1034.32 | J15: EUR | K15: 1034.32 | L15: EUR | T15: 103
D16: 11 | E16: Luxxotica | F16: 38 | G16: 26.79 | I16: 1018.02 | J16: EUR | K16: 1018.02 | L16: EUR | T16: =IRR(T12:T15) -> 0.002449352258
D17: 12 | E17: Pirelli | F17: 115 | G17: 9.01 | I17: 1036.15 | J17: EUR | K17: 1036.15 | L17: EUR
D18: 13 | E18: Scania | F18: 65 | G18: 135.7 | I18: 8820.5 | J18: SEK | K18: 1000.963031 | L18: EUR
D19: 14 | E19: EU ECB Bonds 3% (coupon) maturity 6.04.2015 | F19: 1 | G19: =T10/100*1000 -> 1082.248703 | H19: =T16*100 -> 0.2449352258 | I19: 1082.248703 | J19: EUR | K19: 1082.248703 | L19: EUR
D20: 15 | E20: US Treasury 10y 0-coupon bonds | F20: 2 | G20: =S10/100*1000 -> 815.9379435 | H20: =O9 -> 2.055 | I20: 1631.875887 | J20: USD | K20: 1248.757183 | L20: EUR
K21: =SUM(K6:K20) -> 15680.32971 | L21: EUR (thousands!)
D22: All loans and bonds have a 1'000 nominal face value per security (in any currency).
D23: Current foreign exchange (FX) rates are: | F23: 1.3068 | G23: USD/EUR
F24: 0.9197 | G24: CHF/USD
F25: 6.7432 | G25: SEK/USD
E27: EUR | F27: 1 | G27: EUR/EUR
E28: USD | F28: =1/F23 -> 0.765228038 | G28: EUR/USD
E29: CHF | F29: =F28/F24 -> 0.8320409242 | G29: EUR/CHF
E30: SEK | F30: =F28/F25 -> 0.1134814388 | G30: EUR/SEK

Sheet Data (raw)
A1: =LEFT(R1,SEARCH(".",R1)-1) & " > " & RIGHT(Q1, LEN(Q1) - SEARCH("]", Q1)) -> FundX VaR > Data (raw) | Q1: =CELL("filename",A1) -> C:\Users\Hugo\Documents\HP ACAD\library\CASEShp\Risk (VaR) - FundX VaR\[HPcase (2012) - Risk (VaR) - FundX VaR.xlsm]Data (raw) | R1: =MID(Q1,FIND(CHAR(127),SUBSTITUTE(Q1,"-",CHAR(127), LEN(Q1)-LEN(SUBSTITUTE(Q1,"-",""))))+2,1024) -> FundX VaR.xlsm]Data (raw)
D3: Type | E3: INDEX | F3: STOCKS | R3: FX | U3: IRs
D4: Description | E4: MSCI EUROPE | F4: Nestlé | G4: Solvay | H4: Danone | I4: Novartis | J4: Repsol | K4: Renault | L4: Daimler | M4: Henkel | N4: Siemens | O4: Luxxotica | P4: Pirelli | Q4: Scania | R4: USD/EUR | S4: CHF/USD | T4: SEK/USD | U4: EUR 1Y | V4: EUR2Y | W4: EUR 3Y | X4: USD 10Y
D5: BB code | E5: MXEU Index | F5: NESN VX Equity | G5: SOLB BB Equity | H5: BN FP Equity | I5: NOVN VX Equity | J5: REP SM Equity | K5: RNO FP Equity | L5: DAI GY Equity | M5: HEN3 GY Equity | N5: SIE GY Equity | O5: LUX IM Equity | P5: PC IM Equity | Q5: SCVB SS Equity | R5: EUR Curncy | S5: CHF Curncy | T5: SEK Curncy | U5: GTEUR1Y Govt | V5: GTEUR2Y Govt | W5: GTEUR3Y Govt | X5: GT10 Govt
C6: Date | D6: 2009-04-10 | E6: 65.56 | F6: 39.54 | G6: 65.075 | H6: 35.0552 | I6: 42.5 | J6: 14.47 | K6: 22.66 | L6: 24.46 | M6: 20.25 | N6: 45.82 | O6: 12.7 | P6: 2.50924 | Q6: 81 | R6: 1.3189 | S6: 1.1549 | T6: 8.2447 | U6: 0.966 | V6: 1.386 | W6: 1.81 | X6: 2.924
D7: 2009-04-17 | E7: 68.66 | F7: 38.3 | G7: 63.98 | H7: 34.706 | I7: 42.58 | J7: 14.49 | K7: 24.1 | L7: 26.65 | M7: 19.93 | N7: 48.16 | O7: 13.02 | P7: 2.56603 | Q7: 84.25 | R7: 1.3044 | S7: 1.1651 | T7: 8.4513 | U7: 1.028 | V7: 1.467 | W7: 1.856 | X7: 2.947
D8: 2009-04-24 | E8: 68.37 | F8: 37.78 | G8: 64.65 | H8: 34.7626 | I8: 42.46 | J8: 14.39 | K8: 23.305 | L8: 27.265 | M8: 19.78 | N8: 49.31 | O8: 14.07 | P8: 3.20108 | Q8: 85.75 | R8: 1.3242 | S8: 1.1385 | T8: 8.117 | U8: 0.932 | V8: 1.376 | W8: 1.771 | X8: 2.992
D9: 2009-05-01 | E9: 69.98 | F9: 37.36 | G9: 65.23 | H9: 34.0974 | I9: 43.4 | J9: 14.47 | K9: 24.57 | L9: 27.145 | M9: 20.53 | N9: 51.03 | O9: 14.04 | P9: 3.07201 | Q9: 86.25 | R9: 1.3273 | S9: 1.1359 | T9: 8.0356 | U9: 0.879 | V9: 1.329 | W9: 1.709 | X9: 3.155
D10: 2009-05-08 | E10: 73.12 | F10: 39.42 | G10: 66.55 | H10: 36.3243 | I10: 42.68 | J10: 15.43 | K10: 26.035 | L10: 27.66 | M10: 22.25 | N10: 52.67 | O10: 15.96 | P10: 3.04619 | Q10: 89 | R10: 1.3634 | S10: 1.1054 | T10: 7.6499 | U10: 0.815 | V10: 1.305 | W10: 1.737 | X10: 3.287
D11: 2009-05-15 | E11: 70.83 | F11: 40.36 | G11: 61.21 | H11: 36.5885 | I11: 44.08 | J11: 14.9 | K11: 23.98 | L11: 25.045 | M11: 21.86 | N11: 50.51 | O11: 15.37 | P11: 2.81386 | Q11: 79.75 | R11: 1.3495 | S11: 1.1213 | T11: 7.9187 | U11: 0.795 | V11: 1.259 | W11: 1.655 | X11: 3.136
D12: 2009-05-22 | E12: 72.24 | F12: 39.94 | G12: 64.955 | H12: 36.9235 | I12: 43.66 | J12: 15.43 | K12: 26.265 | L12: 25 | M12: 22.17 | N12: 52.89 | O12: 14.61 | P12: 2.93261 | Q12: 78 | R12: 1.3998 | S12: 1.0855 | T12: 7.4527 | U12: 0.907 | V12: 1.308 | W12: 1.721 | X12: 3.451
D13: 2009-05-29 | E13: 72.72 | F13: 38.7 | G13: 64.6 | H13: 33.1491 | I13: 42.5 | J13: 15.83 | K13: 27.06 | L13: 25.85 | M13: 21.75 | N13: 51.44 | O13: 14.66 | P13: 2.94293 | Q13: 76.25 | R13: 1.4158 | S13: 1.0669 | T13: 7.5458 | U13: 0.868 | V13: 1.419 | W13: 1.749 | X13: 3.461
D14: 2009-06-05 | E14: 73.57 | F14: 38.78 | G14: 61 | H14: 33.41 | I14: 42.76 | J14: 16.38 | K14: 30.76 | L14: 27.73 | M14: 22.58 | N14: 54.5 | O14: 14.95 | P14: 2.91712 | Q14: 78.5 | R14: 1.3968 | S14: 1.0854 | T14: 7.8019 | U14: 1.074 | V14: 1.674 | W14: 1.991 | X14: 3.83
D15: 2009-06-12 | E15: 74.77 | F15: 39.24 | G15: 61.585 | H15: 34.215 | I15: 45 | J15: 16.59 | K15: 30.45 | L15: 27.805 | M15: 22.84 | N15: 54.1 | O15: 14.8 | P15: 2.97391 | Q15: 81.25 | R15: 1.4016 | S15: 1.0791 | T15: 7.6894 | U15: 1.022 | V15: 1.682 | W15: 2.005 | X15: 3.794
D16: 2009-06-19 | E16: 72.7 | F16: 40.14 | G16: 60.19 | H16: 35.42 | I16: 45.46 | J16: 15.92 | K16: 27.025 | L16: 24.43 | M16: 22.59 | N16: 50.65 | O16: 14.14 | P16: 2.64864 | Q16: 76.5 | R16: 1.3937 | S16: 1.0812 | T16: 7.9129 | U16: 0.898 | V16: 1.453 | W16: 1.819 | X16: 3.783
D17: 2009-06-26 | E17: 71.28 | F17: 40.84 | G17: 59.64 | H17: 35.675 | I17: 44.6 | J17: 15.8 | K17: 25.785 | L17: 25.79 | M17: 21.84 | N17: 48.85 | O17: 14.67 | P17: 2.5557 | Q17: 77.25 | R17: 1.4056 | S17: 1.0834 | T17: 7.8002 | U17: 0.824 | V17: 1.324 | W17: 1.692 | X17: 3.538
D18: 2009-07-03 | E18: 71.14 | F18: 41.14 | G18: 59.02 | H18: 35.79 | I18: 43.4 | J18: 16.6 | K18: 25.11 | L18: 24.995 | M18: 22.85 | N18: 47.37 | O18: 15.16 | P18: 2.51853 | Q18: 75.5 | R18: 1.398 | S18: 1.0866 | T18: 7.7705 | U18: 0.805 | V18: 1.237 | W18: 1.616 | X18: 3.5
D19: 2009-07-10 | E19: 68.79 | F19: 40.92 | G19: 57.52 | H19: 35.175 | I19: 42.56 | J19: 15.17 | K19: 22.395 | L19: 24.235 | M19: 21.79 | N19: 46.43 | O19: 14.35 | P19: 2.3657 | Q19: 71.75 | R19: 1.3936 | S19: 1.0865 | T19: 7.9256 | U19: 0.754 | V19: 1.199 | W19: 1.565 | X19: 3.304
D20: 2009-07-17 | E20: 73.45 | F20: 43.5 | G20: 62.4 | H20: 36.49 | I20: 45.7 | J20: 16.33 | K20: 25.99 | L20: 28.95 | M20: 22.77 | N20: 51.62 | O20: 15.46 | P20: 2.63315 | Q20: 81.75 | R20: 1.4102 | S20: 1.0766 | T20: 7.8165 | U20: 0.715 | V20: 1.253 | W20: 1.641 | X20: 3.645
D21: 2009-07-24 | E21: 76.58 | F21: 42.78 | G21: 63.98 | H21: 36.78 | I21: 47.18 | J21: 16.63 | K21: 28.05 | L21: 31.305 | M21: 24.48 | N21: 55.1 | O21: 16.13 | P21: 2.85 | Q21: 83.5 | R21: 1.4202 | S21: 1.0717 | T21: 7.4872 | U21: 0.741 | V21: 1.324 | W21: 1.714 | X21: 3.66
D22: 2009-07-31 | E22: 78.37 | F22: 43.98 | G22: 68.77 | H22: 37.645 | I22: 48.94 | J22: 16.29 | K22: 29.92 | L22: 32.47 | M22: 25.8 | N22: 56 | O22: 17.56 | P22: 3.02038 | Q22: 84.5 | R22: 1.4257 | S22: 1.0685 | T22: 7.1915 | U22: 0.687 | V22: 1.263 | W22: 1.635 | X22: 3.481
D23: 2009-08-07 | E23: 80.28 | F23: 44.12 | G23: 70.49 | H23: 36.925 | I23: 48.36 | J23: 16.205 | K23: 32.8 | L23: 33.58 | M23: 26.93 | N23: 59.02 | O23: 17.53 | P23: 3.27853 | Q23: 86.25 | R23: 1.4183 | S23: 1.0811 | T23: 7.1598 | U23: 0.838 | V23: 1.581 | W23: 1.963 | X23: 3.852
D24: 2009-08-14 | E24: 79.53 | F24: 42.2 | G24: 70.15 | H24: 36.605 | I24: 48.1 | J24: 16.505 | K24: 31.85 | L24: 32.01 | M24: 26.89 | N24: 57.12 | O24: 17.7 | P24: 3.33532 | Q24: 84.75 | R24: 1.4203 | S24: 1.0719 | T24: 7.1937 | U24: 0.702 | V24: 1.299 | W24: 1.705 | X24: 3.571
D25: 2009-08-21 | E25: 81.73 | F25: 43.3 | G25: 72.29 | H25: 37.2 | I25: 48.24 | J25: 17.1 | K25: 33.985 | L25: 32.96 | M25: 27.17 | N25: 59.12 | O25: 17.37 | P25: 3.35081 | Q25: 92.5 | R25: 1.4326 | S25: 1.0583 | T25: 7.0405 | U25: 0.732 | V25: 1.375 | W25: 1.767 | X25: 3.567
D26: 2009-08-28 | E26: 82.61 | F26: 42.9 | G26: 73.74 | H26: 38.12 | I26: 49.16 | J26: 17.49 | K26: 32.58 | L26: 31.965 | M26: 27.62 | N26: 61.03 | O26: 17 | P26: 3.50054 | Q26: 89.75 | R26: 1.4303 | S26: 1.0597 | T26: 7.1131 | U26: 0.678 | V26: 1.255 | W26: 1.688 | X26: 3.447
D27: 2009-09-04 | E27: 81.33 | F27: 43.32 | G27: 72.55 | H27: 37.52 | I27: 48.7 | J27: 16.86 | K27: 30.27 | L27: 31.83 | M27: 26.14 | N27: 60.25 | O27: 17.05 | P27: 3.27853 | Q27: 84.75 | R27: 1.4297 | S27: 1.0606 | T27: 7.1644 | U27: 0.647 | V27: 1.094 | W27: 1.552 | X27: 3.44
D28: 2009-09-11 | E28: 84.02 | F28: 43.74 | G28: 73.65 | H28: 40.1 | I28: 49.54 | J28: 17.73 | K28: 33.305 | L28: 33.505 | M28: 28.07 | N28: 63.76 | O28: 17.43 | P28: 3.71739 | Q28: 88.5 | R28: 1.4571 | S28: 1.0384 | T28: 6.9999 | U28: 0.639 | V28: 1.199 | W28: 1.477 | X28: 3.349
D29: 2009-09-18 | E29: 85.14 | F29: 44.36 | G29: 77.26 | H29: 41.295 | I29: 49.2 | J29: 18.77 | K29: 32.5 | L29: 33.44 | M29: 27.37 | N29: 66.45 | O29: 18.06 | P29: 3.89809 | Q29: 87.25 | R29: 1.4712 | S29: 1.0295 | T29: 6.862 | U29: 0.699 | V29: 1.288 | W29: 1.577 | X29: 3.465
D30: 2009-09-25 | E30: 83.09 | F30: 43.98 | G30: 74.73 | H30: 40.65 | I30: 50.35 | J30: 18.6 | K30: 31.13 | L30: 33.66 | M30: 28.51 | N30: 63.53 | O30: 17.57 | P30: 3.70706 | Q30: 87 | R30: 1.4689 | S30: 1.0276 | T30: 6.9474 | U30: 0.702 | V30: 1.215 | W30: 1.773 | X30: 3.32
D31: 2009-10-02 | E31: 81.39 | F31: 43.24 | G31: 68.96 | H31: 39.92 | I31: 51.2 | J31: 17.995 | K31: 30.755 | L31: 32.785 | M31: 28.25 | N31: 60.2 | O31: 17.42 | P31: 3.64511 | Q31: 83.5 | R31: 1.4576 | S31: 1.035 | T31: 7.037 | U31: 0.699 | V31: 1.204 | W31: 1.722 | X31: 3.221
D32: 2009-10-09 | E32: 84.33 | F32: 43.1 | G32: 70.75 | H32: 40.95 | I32: 51.45 | J32: 18.39 | K32: 33.825 | L32: 34.725 | M32: 30.85 | N32: 64.74 | O32: 17.95 | P32: 4.10978 | Q32: 87 | R32: 1.4732 | S32: 1.0314 | T32: 6.9924 | U32: 0.82 | V32: 1.37 | W32: 1.845 | X32: 3.382
D33: 2009-10-16 | E33: 85.35 | F33: 43.4 | G33: 72.42 | H33: 40.62 | I33: 51.95 | J33: 18.645 | K33: 35.695 | L33: 35.16 | M33: 31.72 | N33: 66.56 | O33: 17.89 | P33: 4.33695 | Q33: 90.5 | R33: 1.4905 | S33: 1.0182 | T33: 6.9553 | U33: 0.844 | V33: 1.416 | W33: 1.879 | X33: 3.413
D34: 2009-10-23 | E34: 85.19 | F34: 46.46 | G34: 70.34 | H34: 41.25 | I34: 52.4 | J34: 18.64 | K34: 35.045 | L34: 36.875 | M34: 31.25 | N34: 65.55 | O34: 17.23 | P34: 4.21304 | Q34: 96.25 | R34: 1.5008 | S34: 1.0088 | T34: 6.784 | U34: 0.865 | V34: 1.378 | W34: 1.852 | X34: 3.492
D35: 2009-10-30 | E35: 82.48 | F35: 47.82 | G35: 66.85 | H35: 40.955 | I35: 53.75 | J35: 18.165 | K35: 30.6 | L35: 33.08 | M35: 30.96 | N35: 61.47 | O35: 16.53 | P35: 3.95489 | Q35: 92.6 | R35: 1.4719 | S35: 1.0263 | T35: 7.0957 | U35: 0.824 | V35: 1.288 | W35: 1.761 | X35: 3.385
D36: 2009-11-06 | E36: 83.85 | F36: 47.68 | G36: 68.35 | H36: 41.38 | I36: 53.55 | J36: 18.5 | K36: 31.635 | L36: 33.21 | M36: 31.25 | N36: 61.96 | O36: 16.6 | P36: 4.19239 | Q36: 91.2 | R36: 1.4847 | S36: 1.0173 | T36: 6.9894 | U36: 0.788 | V36: 1.276 | W36: 1.776 | X36: 3.499
D37: 2009-11-13 | E37: 86.15 | F37: 47.57 | G37: 71.87 | H37: 42.58 | I37: 54.05 | J37: 18.7 | K37: 32.615 | L37: 34.3 | M37: 32.21 | N37: 63.85 | O37: 16.91 | P37: 4.3163 | Q37: 97 | R37: 1.4903 | S37: 1.0125 | T37: 6.8422 | U37: 0.754 | V37: 1.198 | W37: 1.691 | X37: 3.42
D38: 2009-11-20 | E38: 84.73 | F38: 47.79 | G38: 70.67 | H38: 41.295 | I38: 53.95 | J38: 18.345 | K38: 31.99 | L38: 34.975 | M38: 33.06 | N38: 64.1 | O38: 16.79 | P38: 4.21304 | Q38: 96.35 | R38: 1.4862 | S38: 1.0179 | T38: 6.9306 | U38: 0.799 | V38: 1.324 | W38: 1.656 | X38: 3.367
D39: 2009-11-27 | E39: 84.36 | F39: 48.29 | G39: 71.5 | H39: 40.28 | I39: 55.65 | J39: 18.505 | K39: 32.165 | L39: 34.625 | M39: 33.78 | N39: 65.72 | O39: 16.89 | P39: 4.30597 | Q39: 98.65 | R39: 1.4988 | S39: 1.006 | T39: 6.9646 | U39: 0.795 | V39: 1.25 | W39: 1.588 | X39: 3.207
D40: 2009-12-04 | E40: 86.58 | F40: 49.9 | G40: 75.45 | H40: 41.2 | I40: 56.8 | J40: 18.845 | K40: 35.585 | L40: 35.91 | M40: 35.39 | N40: 63.5 | O40: 17.36 | P40: 4.46087 | Q40: 102 | R40: 1.4858 | S40: 1.0167 | T40: 6.9891 | U40: 0.803 | V40: 1.345 | W40: 1.676 | X40: 3.474
D41: 2009-12-11 | E41: 85.23 | F41: 50.1 | G41: 73.09 | H41: 41.465 | I41: 55.8 | J41: 18.42 | K41: 35.19 | L41: 35.185 | M41: 36.37 | N41: 61.8 | O41: 17.3 | P41: 4.42472 | Q41: 96.75 | R41: 1.4615 | S41: 1.0344 | T41: 7.1245 | U41: 0.794 | V41: 1.26 | W41: 1.579 | X41: 3.552
D42: 2009-12-18 | E42: 85.58 | F42: 49.99 | G42: 74.08 | H42: 41.715 | I42: 56.5 | J42: 18.495 | K42: 34.62 | L42: 36.745 | M42: 36.82 | N42: 61.72 | O42: 17.51 | P42: 4.33695 | Q42: 92.75 | R42: 1.4338 | S42: 1.0427 | T42: 7.2628 | U42: 0.771 | V42: 1.149 | W42: 1.446 | X42: 3.539
D43: 2009-12-25 | E43: 87.63 | F43: 50.85 | G43: 74.5 | H43: 42.35 | I43: 56.9 | J43: 18.6 | K43: 35.95 | L43: 37.42 | M43: 36.87 | N43: 63.92 | O43: 18.02 | P43: 4.35761 | Q43: 93.4 | R43: 1.4411 | S43: 1.036 | T43: 7.2619 | U43: 0.797 | V43: 1.188 | W43: 1.512 | X43: 3.805
D44: 2010-01-01 | E44: 88.28 | F44: 50.2 | G44: 75.55 | H44: 42.83 | I44: 56.5 | J44: 18.725 | K44: 36.2 | L44: 37.23 | M44: 36.43 | N44: 64.21 | O44: 18.05 | P44: 4.33695 | Q44: 92.3 | R44: 1.4324 | S44: 1.0352 | T44: 7.1607 | U44: 0.823 | V44: 1.332 | W44: 1.63 | X44: 3.837
D45: 2010-01-08 | E45: 90 | F45: 49.11 | G45: 75.72 | H45: 42.65 | I45: 53.8 | J45: 18.79 | K45: 39.385 | L45: 36.935 | M45: 35.73 | N45: 66.95 | O45: 18.77 | P45: 4.56929 | Q45: 96.5 | R45: 1.4409 | S45: 1.0237 | T45: 7.0764 | U45: 0.702 | V45: 1.244 | W45: 1.557 | X45: 3.832
D46: 2010-01-15 | E46: 89.04 | F46: 49.12 | G46: 72.33 | H46: 42.605 | I46: 54.15 | J46: 18.38 | K46: 38.605 | L46: 36.49 | M46: 37.235 | N46: 66.43 | O46: 18.8 | P46: 4.63125 | Q46: 95.85 | R46: 1.4387 | S46: 1.0253 | T46: 7.0652 | U46: 0.675 | V46: 1.135 | W46: 1.689 | X46: 3.676
D47: 2010-01-22 | E47: 86.77 | F47: 50.55 | G47: 70.66 | H47: 42.715 | I47: 56.25 | J47: 17.4 | K47: 35.7 | L47: 34.18 | M47: 36.68 | N47: 64.78 | O47: 18.8 | P47: 4.33179 | Q47: 94 | R47: 1.4139 | S47: 1.0412 | T47: 7.2401 | U47: 0.671 | V47: 1.112 | W47: 1.636 | X47: 3.609
D48: 2010-01-29 | E48: 85.7 | F48: 50.5 | G48: 71.7 | H48: 41.445 | I48: 56.85 | J48: 17.145 | K48: 34.26 | L48: 33.425 | M48: 36.885 | N48: 65.03 | O48: 18.96 | P48: 4.36793 | Q48: 91.55 | R48: 1.3863 | S48: 1.0606 | T48: 7.3877 | U48: 0.674 | V48: 1.118 | W48: 1.615 | X48: 3.586
D49: 2010-02-05 | E49: 82.4 | F49: 48.35 | G49: 69.81 | H49: 40.12 | I49: 57.15 | J49: 15.82 | K49: 32.145 | L49: 32.32 | M49: 35.295 | N49: 61.67 | O49: 17.95 | P49: 4.0375 | Q49: 98.25 | R49: 1.3678 | S49: 1.0726 | T49: 7.4455 | U49: 0.619 | V49: 0.989 | W49: 1.47 | X49: 3.567
D50: 2010-02-12 | E50: 83.69 | F50: 50.35 | G50: 70.39 | H50: 41.735 | I50: 57.65 | J50: 16.23 | K50: 29.555 | L50: 32.46 | M50: 36.59 | N50: 62.14 | O50: 18.3 | P50: 3.88777 | Q50: 96.4 | R50: 1.3632 | S50: 1.0754 | T50: 7.2522 | U50: 0.609 | V50: 0.983 | W50: 1.485 | X50: 3.695
D51: 2010-02-19 | E51: 86.92 | F51: 52.7 | G51: 72.14 | H51: 43.74 | I51: 59.9 | J51: 17.09 | K51: 32.29 | L51: 32.3 | M51: 36.815 | N51: 65.34 | O51: 18.95 | P51: 4.06847 | Q51: 98.75 | R51: 1.3613 | S51: 1.0757 | T51: 7.2159 | U51: 0.62 | V51: 1.086 | W51: 1.522 | X51: 3.775
D52: 2010-02-26 | E52: 85.37 | F52: 53.45 | G52: 70.23 | H52: 42.95 | I52: 59.75 | J52: 16.635 | K52: 30.2 | L52: 30.66 | M52: 37.835 | N52: 62.99 | O52: 19.2 | P52: 3.79483 | Q52: 100.7 | R52: 1.3631 | S52: 1.0735 | T52: 7.1223 | U52: 0.558 | V52: 0.955 | W52: 1.366 | X52: 3.614
D53: 2010-03-05 | E53: 89.26 | F53: 52.9 | G53: 73.79 | H53: 44.185 | I53: 58.35 | J53: 17.675 | K53: 32.89 | L53: 32.985 | M53: 38.3 | N53: 67.46 | O53: 18.82 | P53: 4.2182 | Q53: 109.4 | R53: 1.3626 | S53: 1.0742 | T53: 7.1129 | U53: 0.586 | V53: 1 | W53: 1.411 | X53: 3.682
D54: 2010-03-12 | E54: 89.7 | F54: 53.75 | G54: 73.62 | H54: 43.965 | I54: 58 | J54: 17.76 | K54: 33.9 | L54: 33.535 | M54: 37.92 | N54: 68.38 | O54: 19.28 | P54: 4.47119 | Q54: 115.1 | R54: 1.3769 | S54: 1.0578 | T54: 7.0491 | U54: 0.633 | V54: 1.049 | W54: 1.451 | X54: 3.702
D55: 2010-03-19 | E55: 90.34 | F55: 53.15 | G55: 73.53 | H55: 43.58 | I55: 58.25 | J55: 17.86 | K55: 34.125 | L55: 34.375 | M55: 38.1 | N55: 71.28 | O55: 19.63 | P55: 4.52799 | Q55: 116.5 | R55: 1.353 | S55: 1.0613 | T55: 7.1744 | U55: 0.633 | V55: 1.003 | W55: 1.395 | X55: 3.691
D56: 2010-03-26 | E56: 91.43 | F56: 53.75 | G56: 75.96 | H56: 43.565 | I56: 57.55 | J56: 17.88 | K56: 35.545 | L56: 34.98 | M56: 39.34 | N56: 73.3 | O56: 20.09 | P56: 4.71902 | Q56: 116.9 | R56: 1.341 | S56: 1.0652 | T56: 7.2599 | U56: 0.61 | V56: 1 | W56: 1.394 | X56: 3.849
D57: 2010-04-02 | E57: 92.8 | F57: 53.8 | G57: 77.09 | H57: 45.46 | I57: 56.7 | J57: 17.99 | K57: 35.5 | L57: 35.405 | M57: 40.65 | N57: 75.74 | O57: 19.98 | P57: 4.60543 | Q57: 114.9 | R57: 1.3504 | S57: 1.0605 | T57: 7.1822 | U57: 0.639 | V57: 0.955 | W57: 1.326 | X57: 3.947
D58: 2010-04-09 | E58: 93.5 | F58: 53.2 | G58: 78.45 | H58: 46.015 | I58: 56.85 | J58: 18.65 | K58: 35.765 | L58: 35.36 | M58: 41.055 | N58: 74.84 | O58: 20.4 | P58: 4.49701 | Q58: 117.1 | R58: 1.35 | S58: 1.0657 | T58: 7.1988 | U58: 0.659 | V58: 0.968 | W58: 1.345 | X58: 3.884
D59: 2010-04-16 | E59: 92.91 | F59: 53.05 | G59: 78.27 | H59: 45.555 | I59: 56.55 | J59: 18.12 | K59: 34.46 | L59: 36.54 | M59: 40.295 | N59: 71.13 | O59: 20.7 | P59: 4.53315 | Q59: 124.6 | R59: 1.3503 | S59: 1.0614 | T59: 7.1756 | U59: 0.606 | V59: 0.889 | W59: 1.253 | X59: 3.764
D60: 2010-04-23 | E60: 92.7 | F60: 53.25 | G60: 76.05 | H60: 44.7 | I60: 55.95 | J60: 18.075 | K60: 36.715 | L60: 38.87 | M60: 40.61 | N60: 72.83 | O60: 21.89 | P60: 4.54347 | Q60: 126.4 | R60: 1.3384 | S60: 1.0731 | T60: 7.1673 | U60: 0.603 | V60: 0.902 | W60: 1.257 | X60: 3.811
D61: 2010-04-30 | E61: 90.16 | F61: 52.85 | G61: 72 | H61: 44.38 | I61: 55.05 | J61: 17.725 | K61: 35.41 | L61: 38.815 | M61: 40.225 | N61: 74.34 | O61: 20.52 | P61: 4.49184 | Q61: 127.7 | R61: 1.3294 | S61: 1.0776 | T61: 7.2519 | U61: 0.588 | V61: 0.771 | W61: 1.111 | X61: 3.655
D62: 2010-05-07 | E62: 82.32 | F62: 50.2 | G62: 67.85 | H62: 40.16 | I62: 52.1 | J62: 15.54 | K62: 30.995 | L62: 35.85 | M62: 36.875 | N62: 68.25 | O62: 19.35 | P62: 4.21304 | Q62: 111.2 | R62: 1.2755 | S62: 1.108 | T62: 7.6472 | U62: 0.383 | V62: 0.532 | W62: 0.804 | X62: 3.427
D63: 2010-05-14 | E63: 86.12 | F63: 52.3 | G63: 69.22 | H63: 41.875 | I63: 53.1 | J63: 16.28 | K63: 31.355 | L63: 40.575 | M63: 38.28 | N63: 73.96 | O63: 20.49 | P63: 4.62092 | Q63: 115.7 | R63: 1.2358 | S63: 1.1336 | T63: 7.7456 | U63: 0.383 | V63: 0.556 | W63: 0.758 | X63: 3.455
D64: 2010-05-21 | E64: 82.31 | F64: 51.1 | G64: 69.29 | H64: 40.37 | I64: 51.25 | J64: 16.73 | K64: 28.785 | L64: 38.83 | M64: 36.45 | N64: 71.1 | O64: 19.5 | P64: 4.4144 | Q64: 110.1 | R64: 1.257 | S64: 1.1497 | T64: 7.8116 | U64: 0.385 | V64: 0.512 | W64: 0.659 | X64: 3.24
D65: 2010-05-28 | E65: 84.69 | F65: 52.5 | G65: 71.13 | H65: 41.955 | I65: 52.6 | J65: 16.8 | K65: 29.155 | L65: 40.3 | M65: 37.905 | N65: 73.45 | O65: 19.39 | P65: 4.36277 | Q65: 115.5 | R65: 1.2273 | S65: 1.1591 | T65: 7.8498 | U65: 0.364 | V65: 0.519 | W65: 0.69 | X65: 3.294
D66: 2010-06-04 | E66: 84.87 | F66: 53.35 | G66: 70.93 | H66: 42.84 | I66: 52.55 | J66: 16.215 | K66: 29.195 | L66: 40.38 | M66: 38.83 | N66: 72.7 | O66: 20.3 | P66: 4.6519 | Q66: 116.4 | R66: 1.1967 | S66: 1.1621 | T66: 8.0461 | U66: 0.396 | V66: 0.476 | W66: 0.604 | X66: 3.204
D67: 2010-06-11 | E67: 86.53 | F67: 54 | G67: 72.09 | H67: 43.28 | I67: 55.5 | J67: 17.095 | K67: 30.62 | L67: 42.735 | M67: 40.475 | N67: 74.35 | O67: 21.18 | P67: 4.87391 | Q67: 122 | R67: 1.2112 | S67: 1.1494 | T67: 7.9137 | U67: 0.389 | V67: 0.464 | W67: 0.585 | X67: 3.236
D68: 2010-06-18 | E68: 88.59 | F68: 53.05 | G68: 74.71 | H68: 43.995 | I68: 54.05 | J68: 17.825 | K68: 32.89 | L68: 43.12 | M68: 41.53 | N68: 77.26 | O68: 21.34 | P68: 4.98233 | Q68: 126.5 | R68: 1.2388 | S68: 1.1085 | T68: 7.728 | U68: 0.453 | V68: 0.581 | W68: 0.7 | X68: 3.221
D69: 2010-06-25 | E69: 86.11 | F69: 52.2 | G69: 72 | H69: 44.24 | I69: 53.2 | J69: 16.895 | K69: 31.355 | L69: 42.015 | M69: 40.255 | N69: 75.12 | O69: 20.26 | P69: 4.77581 | Q69: 123.8 | R69: 1.2369 | S69: 1.0929 | T69: 7.727 | U69: 0.526 | V69: 0.569 | W69: 0.668 | X69: 3.11
D70: 2010-07-02 | E70: 82.25 | F70: 50.35 | G70: 68.92 | H70: 44.32 | I70: 51.05 | J70: 16.58 | K70: 30.17 | L70: 40.28 | M70: 38.75 | N70: 71.72 | O70: 18.96 | P70: 4.58478 | Q70: 117.5 | R70: 1.2566 | S70: 1.0627 | T70: 7.6226 | U70: 0.574 | V70: 0.666 | W70: 0.766 | X70: 2.979
D71: 2010-07-09 | E71: 86.68 | F71: 51.95 | G71: 71.3 | H71: 45.495 | I71: 52.25 | J71: 17.59 | K71: 33.455 | L71: 41.635 | M71: 39.03 | N71: 73.22 | O71: 19.63 | P71: 4.92554 | Q71: 125.3 | R71: 1.2641 | S71: 1.0578 | T71: 7.4929 | U71: 0.674 | V71: 0.768 | W71: 0.858 | X71: 3.054
D72: 2010-07-16 | E72: 86.03 | F72: 53.05 | G72: 70.02 | H72: 45.095 | I72: 52.4 | J72: 17.49 | K72: 33.92 | L72: 43.05 | M72: 38.54 | N72: 74.23 | O72: 19.18 | P72: 4.94619 | Q72: 126.4 | R72: 1.293 | S72: 1.051 | T72: 7.3339 | U72: 0.741 | V72: 0.776 | W72: 0.859 | X72: 2.923
D73: 2010-07-23 | E73: 88.74 | F73: 53.7 | G73: 73.59 | H73: 46.145 | I73: 51.8 | J73: 18.15 | K73: 34.895 | L73: 42.485 | M73: 40.165 | N73: 76.42 | O73: 20.18 | P73: 5.09076 | Q73: 134.9 | R73: 1.2909 | S73: 1.0543 | T73: 7.3074 | U73: 0.671 | V73: 0.749 | W73: 0.874 | X73: 2.996
D74: 2010-07-30 | E74: 88.5 | F74: 51.5 | G74: 75.1 | H74: 43.04 | I74: 50.55 | J74: 18.105 | K74: 34.235 | L74: 41.375 | M74: 38.085 | N74: 74.79 | O74: 19.96 | P74: 5.03631 | Q74: 133.1 | R74: 1.3052 | S74: 1.0412 | T74: 7.2104 | U74: 0.687 | V74: 0.784 | W74: 0.913 | X74: 2.907
D75: 2010-08-06 | E75: 89.67 | F75: 50.55 | G75: 74.58 | H75: 42.435 | I75: 51.75 | J75: 18.6 | K75: 33.715 | L75: 40.965 | M75: 38.985 | N75: 76.34 | O75: 19.74 | P75: 5.18651 | Q75: 136.5 | R75: 1.328 | S75: 1.0388 | T75: 7.0828 | U75: 0.722 | V75: 0.746 | W75: 0.847 | X75: 2.818
D76: 2010-08-13 | E76: 88.67 | F76: 52.5 | G76: 71.72 | H76: 42.825 | I76: 53 | J76: 18.07 | K76: 33.16 | L76: 39.145 | M76: 38.53 | N76: 75 | O76: 19.36 | P76: 4.8955 | Q76: 130.7 | R76: 1.2754 | S76: 1.051 | T76: 7.4502 | U76: 0.595 | V76: 0.655 | W76: 0.703 | X76: 2.673
D77: 2010-08-20 | E77: 87.44 | F77: 52.15 | G77: 71.47 | H77: 41.255 | I77: 52.35 | J77: 17.84 | K77: 32.465 | L77: 39.23 | M77: 37.24 | N77: 73.38 | O77: 18.3 | P77: 4.93774 | Q77: 131 | R77: 1.2712 | S77: 1.0339 | T77: 7.4167 | U77: 0.575 | V77: 0.61 | W77: 0.647 | X77: 2.612
D78: 2010-08-27 | E78: 87.17 | F78: 52.4 | G78: 72.24 | H78: 42.59 | I78: 53.3 | J78: 18.09 | K78: 32.54 | L78: 38.405 | M78: 37.375 | N78: 72.25 | O78: 18.27 | P78: 4.95182 | Q78: 135.1 | R78: 1.2763 | S78: 1.028 | T78: 7.3391 | U78: 0.584 | V78: 0.633 | W78: 0.674 | X78: 2.646
D79: 2010-09-03 | E79: 90.33 | F79: 53.9 | G79: 75.45 | H79: 43.31 | I79: 54.05 | J79: 18.81 | K79: 34.425 | L79: 41.655 | M79: 38.24 | N79: 74.63 | O79: 18.85 | P79: 5.13488 | Q79: 140.3 | R79: 1.2896 | S79: 1.0164 | T79: 7.232 | U79: 0.588 | V79: 0.641 | W79: 0.722 | X79: 2.699
D80: 2010-09-10 | E80: 91.82 | F80: 53.75 | G80: 77.65 | H80: 44.53 | I80: 55.2 | J80: 18.895 | K80: 35.89 | L80: 43.78 | M80: 39.215 | N80: 75.79 | O80: 19.42 | P80: 5.29446 | Q80: 141.6 | R80: 1.2679 | S80: 1.0198 | T80: 7.2575 | U80: 0.62 | V80: 0.736 | W80: 0.784 | X80: 2.794
D81: 2010-09-17 | E81: 91.15 | F81: 52.1 | G81: 76.98 | H81: 43.245 | I81: 56.25 | J81: 18.585 | K81: 36.105 | L81: 44.475 | M81: 39.715 | N81: 77.15 | O81: 20.07 | P81: 5.45874 | Q81: 144.3 | R81: 1.305 | S81: 1.0098 | T81: 7.0714 | U81: 0.645 | V81: 0.774 | W81: 0.822 | X81: 2.739
D82: 2010-09-24 | E82: 91.54 | F82: 52.7 | G82: 76.66 | H82: 43.6 | I82: 56.6 | J82: 19.26 | K82: 37.335 | L82: 46.13 | M82: 39.975 | N82: 79.28 | O82: 19.81 | P82: 5.61363 | Q82: 150.4 | R82: 1.3492 | S82: 0.9831 | T82: 6.806 | U82: 0.655 | V82: 0.729 | W82: 0.916 | X82: 2.607
D83: 2010-10-01 | E83: 89.81 | F83: 52.3 | G83: 78.12 | H83: 43.765 | I83: 55.95 | J83: 19.83 | K83: 36.84 | L83: 45.515 | M83: 39.4 | N83: 76.72 | O83: 19.77 | P83: 5.59016 | Q83: 147.1 | R83: 1.3791 | S83: 0.9738 | T83: 6.7129 | U83: 0.768 | V83: 0.853 | W83: 1.009 | X83: 2.512
D84: 2010-10-08 | E84: 90.88 | F84: 52.5 | G84: 78.04 | H84: 43.455 | I84: 56.05 | J84: 20.16 | K84: 38.645 | L84: 45.435 | M84: 41.2 | N84: 77 | O84: 19.81 | P84: 5.62771 | Q84: 144.2 | R84: 1.3939 | S84: 0.9628 | T84: 6.6561 | U84: 0.753 | V84: 0.786 | W84: 0.933 | X84: 2.394
D85: 2010-10-15 | E85: 92.12 | F85: 52.35 | G85: 80.64 | H85: 43.87 | I85: 56.85 | J85: 19.775 | K85: 39.23 | L85: 47.725 | M85: 41.65 | N85: 81.06 | O85: 20.23 | P85: 5.99851 | Q85: 145.7 | R85: 1.3977 | S85: 0.9589 | T85: 6.6208 | U85: 0.784 | V85: 0.814 | W85: 0.967 | X85: 2.561
D86: 2010-10-22 | E86: 92.4 | F86: 52.65 | G86: 81.25 | H86: 45.56 | I86: 56.85 | J86: 19.615 | K86: 42.71 | L86: 49.305 | M86: 42.73 | N86: 83.48 | O86: 20.9 | P86: 6.17687 | Q86: 152.3 | R86: 1.3954 | S86: 0.9773 | T86: 6.6236 | U86: 0.923 | V86: 1.003 | W86: 1.16 | X86: 2.556
D87: 2010-10-29 | E87: 92.17 | F87: 53.9 | G87: 76.09 | H87: 45.475 | I87: 57.05 | J87: 19.925 | K87: 39.925 | L87: 47.43 | M87: 42.38 | N87: 82.08 | O87: 21.23 | P87: 6.135 | Q87: 142 | R87: 1.3947 | S87: 0.9824 | T87: 6.6702 | U87: 0.944 | V87: 0.989 | W87: 1.17 | X87: 2.601
D88: 2010-11-05 | E88: 94.29 | F88: 55.8 | G88: 78.29 | H88: 46.4 | I88: 56.25 | J88: 19.96 | K88: 40.5 | L88: 48.94 | M88: 42.115 | N88: 83.9 | O88: 20.85 | P88: 6.145 | Q88: 148.5 | R88: 1.4032 | S88: 0.9617 | T88: 6.6143 | U88: 0.916 | V88: 0.915 | W88: 1.07 | X88: 2.532
D89: 2010-11-12 | E89: 93.71 | F89: 54.9 | G89: 76.22 | H89: 46.125 | I89: 54.7 | J89: 19.6 | K89: 41.465 | L89: 49.88 | M89: 45.93 | N89: 86 | O89: 20.59 | P89: 5.88 | Q89: 146 | R89: 1.3691 | S89: 0.9809 | T89: 6.8677 | U89: 0.941 | V89: 1.024 | W89: 1.144 | X89: 2.789
D90: 2010-11-19 | E90: 93.41 | F90: 55.55 | G90: 76.68 | H90: 46.98 | I90: 56.3 | J90: 19.83 | K90: 43.155 | L90: 50.74 | M90: 47.075 | N90: 85.49 | O90: 20.56 | P90: 6.09 | Q90: 145.4 | R90: 1.3673 | S90: 0.9923 | T90: 6.8593 | U90: 0.953 | V90: 1.107 | W90: 1.253 | X90: 2.873
D91: 2010-11-26 | E91: 92.37 | F91: 56.6 | G91: 76.53 | H91: 45.775 | I91: 55 | J91: 18.83 | K91: 42.995 | L91: 51.54 | M91: 47.465 | N91: 85.87 | O91: 20.6 | P91: 6.095 | Q91: 144.8 | R91: 1.3242 | S91: 1.0036 | T91: 7.0044 | U91: 0.859 | V91: 0.928 | W91: 1.111 | X91: 2.868
D92: 2010-12-03 | E92: 93.8 | F92: 55.2 | G92: 77.55 | H92: 46.385 | I92: 53.45 | J92: 19.82 | K92: 43.835 | L92: 53.95 | M92: 47.99 | N92: 89.7 | O92: 21.34 | P92: 6.195 | Q92: 155.2 | R92: 1.3414 | S92: 0.9735 | T92: 6.797 | U92: 0.834 | V92: 0.858 | W92: 1.06 | X92: 3.007
D93: 2010-12-10 | E93: 95.62 | F93: 55.55 | G93: 76.69 | H93: 46.995 | I93: 53.5 | J93: 21.03 | K93: 44.02 | L93: 54.87 | M93: 45.565 | N93: 90.43 | O93: 21.69 | P93: 6.14 | Q93: 154.9 | R93: 1.3226 | S93: 0.9811 | T93: 6.9119 | U93: 0.826 | V93: 1.078 | W93: 1.256 | X93: 3.321
D94: 2010-12-17 | E94: 95.63 | F94: 55.95 | G94: 79.29 | H94: 47.2 | I94: 56.75 | J94: 20.8 | K94: 43.11 | L94: 53.68 | M94: 45.98 | N94: 92.38 | O94: 21.96 | P94: 6.12 | Q94: 156 | R94: 1.3188 | S94: 0.9686 | T94: 6.8425 | U94: 0.787 | V94: 1.058 | W94: 1.271 | X94: 3.33
D95: 2010-12-24 | E95: 97.4 | F95: 56.6 | G95: 80 | H95: 48.155 | I95: 56.5 | J95: 21.175 | K95: 43.725 | L95: 54.07 | M95: 46.715 | N95: 94.78 | O95: 23 | P95: 6.215 | Q95: 157.3 | R95: 1.3122 | S95: 0.9623 | T95: 6.8512 | U95: 0.733 | V95: 0.943 | W95: 1.154 | X95: 3.395
D96: 2010-12-31 | E96: 95.38 | F96: 54.75 | G96: 79.75 | H96: 47.02 | I96: 54.95 | J96: 20.85 | K96: 43.5 | L96: 50.73 | M96: 46.535 | N96: 92.7 | O96: 22.8 | P96: 6.05 | Q96: 154.7 | R96: 1.3384 | S96: 0.9352 | T96: 6.7114 | U96: 0.683 | V96: 0.864 | W96: 1.039 | X96: 3.295
D97: 2011-01-07 | E97: 97.24 | F97: 53.7 | G97: 78.62 | H97: 46.17 | I97: 55.2 | J97: 20.58 | K97: 47.25 | L97: 54.53 | M97: 45.98 | N97: 89.72 | O97: 23.15 | P97: 6.045 | Q97: 156.2 | R97: 1.2907 | S97: 0.9673 | T97: 6.9374 | U97: 0.704 | V97: 0.866 | W97: 1.05 | X97: 3.326
D98: 2011-01-14 | E98: 98.15 | F98: 51.75 | G98: 77.27 | H98: 45.255 | I98: 54.55 | J98: 22.505 | K98: 48.715 | L98: 55.95 | M98: 47.305 | N98: 91.07 | O98: 23.13 | P98: 5.88 | Q98: 155.9 | R98: 1.3388 | S98: 0.9634 | T98: 6.6587 | U98: 0.79 | V98: 1.151 | W98: 1.479 | X98: 3.325
D99: 2011-01-21 | E99: 97.33 | F99: 52.6 | G99: 77.6 | H99: 44.81 | I99: 54.2 | J99: 22.625 | K99: 47.05 | L99: 54.78 | M99: 44.7 | N99: 92.35 | O99: 22.2 | P99: 5.785 | Q99: 144.2 | R99: 1.3621 | S99: 0.9584 | T99: 6.5858 | U99: 0.968 | V99: 1.289 | W99: 1.666 | X99: 3.406
D100: 2011-01-28 | E100: 97.05 | F100: 51.35 | G100: 76.88 | H100: 43.945 | I100: 52.8 | J100: 23 | K100: 47.785 | L100: 54.8 | M100: 44.57 | N100: 93.79 | O100: 22.31 | P100: 5.61 | Q100: 145 | R100: 1.3611 | S100: 0.9419 | T100: 6.528 | U100: 1.022 | V100: 1.362 | W100: 1.733 | X100: 3.323
D101: 2011-02-04 | E101: 98.94 | F101: 51.9 | G101: 77.21 | H101: 44.97 | I101: 53.75 | J101: 23.555 | K101: 47.47 | L101: 52.69 | M101: 44.86 | N101: 93.24 | O101: 21.78 | P101: 5.64 | Q101: 140 | R101: 1.3581 | S101: 0.955 | T101: 6.4813 | U101: 1.051 | V101: 1.435 | W101: 1.803 | X101: 3.638
D102: 2011-02-11 | E102: 99.65 | F102: 51.9 | G102: 78.37 | H102: 43.585 | I102: 54.4 | J102: 23.48 | K102: 46.6 | L102: 56.51 | M102: 44.465 | N102: 94.68 | O102: 22.03 | P102: 6.115 | Q102: 139 | R102: 1.3554 | S102: 0.9732 | T102: 6.4818 | U102: 1.076 | V102: 1.406 | W102: 1.801 | X102: 3.631
D103: 2011-02-18 | E103: 100.76 | F103: 52.25 | G103: 83.9 | H103: 45.835 | I103: 54.3 | J103: 24.575 | K103: 44.99 | L103: 52.63 | M103: 45.3 | N103: 98 | O103: 22.07 | P103: 6.005 | Q103: 135.9 | R103: 1.3693 | S103: 0.9446 | T103: 6.3879 | U103: 1.064 | V103: 1.396 | W103: 1.775 | X103: 3.582
D104: 2011-02-25 | E104: 98.37 | F104: 52.25 | G104: 83.78 | H104: 45.285 | I104: 51.25 | J104: 24.155 | K104: 42.95 | L104: 51.07 | M104: 43.525 | N104: 94.16 | O104: 22.32 | P104: 5.78 | Q104: 138 | R104: 1.3754 | S104: 0.9282 | T104: 6.4246 | U104: 1.141 | V104: 1.536 | W104: 1.778 | X104: 3.414
D105: 2011-03-04 | E105: 97.57 | F105: 51.95 | G105: 85.42 | H105: 44.87 | I105: 52.75 | J105: 24.025 | K105: 42.165 | L105: 48.235 | M105: 45.76 | N105: 95.4 | O105: 22.52 | P105: 5.785 | Q105: 136.5 | R105: 1.3987 | S105: 0.9245 | T105: 6.3462 | U105: 1.293 | V105: 1.76 | W105: 2.007 | X105: 3.492
D106: 2011-03-11 | E106: 95.28 | F106: 51.6 | G106: 81.73 | H106: 44.27 | I106: 50.75 | J106: 23.46 | K106: 40.75 | L106: 47.79 | M106: 44.365 | N106: 91.26 | O106: 22.97 | P106: 6.045 | Q106: 134.5 | R106: 1.3903 | S106: 0.9298 | T106: 6.3349 | U106: 1.268 | V106: 1.647 | W106: 1.923 | X106: 3.404
D107: 2011-03-18 | E107: 92.56 | F107: 49.74 | G107: 78.79 | H107: 43.005 | I107: 48.62 | J107: 23.2 | K107: 38.14 | L107: 45.9 | M107: 41.72 | N107: 90.4 | O107: 21.63 | P107: 5.93 | Q107: 134.3 | R107: 1.4182 | S107: 0.901 | T107: 6.2718 | U107: 1.218 | V107: 1.629 | W107: 1.889 | X107: 3.27
D108: 2011-03-25 | E108: 95.47 | F108: 52.15 | G108: 81.48 | H108: 45.255 | I108: 50.85 | J108: 24.3 | K108: 37.88 | L108: 48.995 | M108: 42.815 | N108: 93.92 | O108: 22.45 | P108: 6.25 | Q108: 140.3 | R108: 1.4088 | S108: 0.9199 | T108: 6.3794 | U108: 1.282 | V108: 1.729 | W108: 1.986 | X108: 3.441
D109: 2011-04-01 | E109: 96.9 | F109: 52.85 | G109: 83.86 | H109: 46.435 | I109: 50.05 | J109: 24.54 | K109: 39.945 | L109: 51.59 | M109: 44.41 | N109: 99.38 | O109: 23.17 | P109: 6.245 | Q109: 148 | R109: 1.4237 | S109: 0.9238 | T109: 6.2952 | U109: 1.314 | V109: 1.817 | W109: 2.084 | X109: 3.444
D110: 2011-04-08 | E110: 97.46 | F110: 53.05 | G110: 89.56 | H110: 46.855 | I110: 50.75 | J110: 24.65 | K110: 39.865 | L110: 52.04 | M110: 44.47 | N110: 96.28 | O110: 22.57 | P110: 6.48 | Q110: 146.5 | R110: 1.4483 | S110: 0.9065 | T110: 6.2029 | U110: 1.443 | V110: 1.903 | W110: 2.199 | X110: 3.579
D111: 2011-04-15 | E111: 96.06 | F111: 54.5 | G111: 91.44 | H111: 48.595 | I111: 50.05 | J111: 23.2 | K111: 37.215 | L111: 49.47 | M111: 44.02 | N111: 94.68 | O111: 22 | P111: 6.48 | Q111: 141.9 | R111: 1.443 | S111: 0.8922 | T111: 6.1848 | U111: 1.424 | V111: 1.842 | W111: 2.118 | X111: 3.41
D112: 2011-04-22 | E112: 96.94 | F112: 53.85 | G112: 95.01 | H112: 48.92 | I112: 50.95 | J112: 23.47 | K112: 38.395 | L112: 51.3 | M112: 45.775 | N112: 95.97 | O112: 23.12 | P112: 6.755 | Q112: 147.6 | R112: 1.4561 | S112: 0.8861 | T112: 6.1059 | U112: 1.371 | V112: 1.753 | W112: 2.024 | X112: 3.393
D113: 2011-04-29 | E113: 98.1 | F113: 53.7 | G113: 97.39 | H113: 49.455 | I113: 51.35 | J113: 24.11 | K113: 41.14 | L113: 52.19 | M113: 45.98 | N113: 98.22 | O113: 22.29 | P113: 7.025 | Q113: 157 | R113: 1.4807 | S113: 0.8653 | T113: 6.0419 | U113: 1.41 | V113: 1.767 | W113: 2.028 | X113: 3.288
D114: 2011-05-06 | E114: 97.16 | F114: 54.15 | G114: 98.83 | H114: 49.89 | I114: 52.75 | J114: 23.225 | K114: 40.635 | L114: 51.33 | M114: 48.95 | N114: 95.95 | O114: 22.46 | P114: 6.96 | Q114: 150 | R114: 1.4316 | S114: 0.879 | T114: 6.309 | U114: 1.476 | V114: 1.757 | W114: 2.011 | X114: 3.148
D115: 2011-05-13 | E115: 96.8 | F115: 54.75 | G115: 106.35 | H115: 49.88 | I115: 54.25 | J115: 22.62 | K115: 40.78 | L115: 50.56 | M115: 48.91 | N115: 93.13 | O115: 22.85 | P115: 7.035 | Q115: 154.8 | R115: 1.4119 | S115: 0.8925 | T115: 6.3884 | U115: 1.44 | V115: 1.774 | W115: 1.917 | X115: 3.171
D116: 2011-05-20 | E116: 96.52 | F116: 54.65 | G116: 103.4 | H116: 50.62 | I116: 54.1 | J116: 22.365 | K116: 39.475 | L116: 48.85 | M116: 49.255 | N116: 91.75 | O116: 22.54 | P116: 6.79 | Q116: 152.6 | R116: 1.4161 | S116: 0.8774 | T116: 6.3083 | U116: 1.445 | V116: 1.767 | W116: 1.911 | X116: 3.146
D117: 2011-05-27 | E117: 96.32 | F117: 54.45 | G117: 101 | H117: 49.75 | I117: 53.95 | J117: 22.945 | K117: 39.065 | L117: 48.08 | M117: 48.585 | N117: 90 | O117: 22 | P117: 6.835 | Q117: 149.1 | R117: 1.4319 | S117: 0.8494 | T117: 6.2195 | U117: 1.339 | V117: 1.559 | W117: 1.733 | X117: 3.074
D118: 2011-06-03 | E118: 94.37 | F118: 54.15 | G118: 104.05 | H118: 50.36 | I118: 53.15 | J118: 22.72 | K118: 38.165 | L118: 47.57 | M118: 48.125 | N118: 91 | O118: 21.95 | P118: 6.76 | Q118: 147.2 | R118: 1.4635 | S118: 0.8335 | T118: 6.1315 | U118: 1.406 | V118: 1.688 | W118: 1.857 | X118: 2.987
D119: 2011-06-10 | E119: 92.51 | F119: 52.75 | G119: 105.35 | H119: 49.86 | I119: 51.2 | J119: 22.04 | K119: 36.4 | L119: 46.585 | M119: 47.565 | N119: 89.46 | O119: 21.06 | P119: 6.655 | Q119: 139.9 | R119: 1.4347 | S119: 0.843 | T119: 6.3273 | U119: 1.393 | V119: 1.534 | W119: 1.679 | X119: 2.97
D120: 2011-06-17 | E120: 92.19 | F120: 52.55 | G120: 105.45 | H120: 52.72 | I120: 51.45 | J120: 22.43 | K120: 37.02 | L120: 47.34 | M120: 47.11 | N120: 92.01 | O120: 21.12 | P120: 6.755 | Q120: 138.1 | R120: 1.4306 | S120: 0.8482 | T120: 6.4142 | U120: 1.432 | V120: 1.51 | W120: 1.648 | X120: 2.945
D121: 2011-06-24 | E121: 91.12 | F121: 51.75 | G121: 104.85 | H121: 51.95 | I121: 49.94 | J121: 22.035 | K121: 39.165 | L121: 49.02 | M121: 47.325 | N121: 92.36 | O121: 21.37 | P121: 6.955 | Q121: 134.1 | R121: 1.4188 | S121: 0.8331 | T121: 6.4973 | U121: 1.342 | V121: 1.352 | W121: 1.471 | X121: 2.864
D122: 2011-07-01 | E122: 94.86 | F122: 52.6 | G122: 105.75 | H122: 51.55 | I122: 51.7 | J122: 24.15 | K122: 40.79 | L122: 51.59 | M122: 48.015 | N122: 94.9 | O122: 22.33 | P122: 7.515 | Q122: 145 | R122: 1.4526 | S122: 0.8478 | T122: 6.2647 | U122: 1.425 | V122: 1.647 | W122: 1.758 | X122: 3.183
D123: 2011-07-08 | E123: 94.52 | F123: 52.6 | G123: 108.6 | H123: 52.48 | I123: 52.05 | J123: 22.42 | K123: 39.2 | L123: 52.39 | M123: 49.445 | N123: 94.68 | O123: 22.32 | P123: 7.385 | Q123: 144.7 | R123: 1.4265 | S123: 0.8366 | T123: 6.3832 | U123: 1.417 | V123: 1.449 | W123: 1.559 | X123: 3.028
D124: 2011-07-15 | E124: 92.26 | F124: 51.4 | G124: 109.2 | H124: 50.75 | I124: 50.2 | J124: 21.325 | K124: 36.995 | L124: 53.27 | M124: 48.35 | N124: 93.05 | O124: 22.79 | P124: 7.655 | Q124: 135.2 | R124: 1.4157 | S124: 0.8152 | T124: 6.4892 | U124: 1.232 | V124: 1.211 | W124: 1.34 | X124: 2.907
D125: 2011-07-22 | E125: 94.03 | F125: 51.75 | G125: 108.05 | H125: 51.24 | I125: 50.6 | J125: 22.575 | K125: 38.05 | L125: 52.47 | M125: 47.58 | N125: 93.2 | O125: 22.17 | P125: 7.25 | Q125: 132 | R125: 1.436 | S125: 0.8192 | T125: 6.332 | U125: 1.331 | V125: 1.383 | W125: 1.498 | X125: 2.963
D126: 2011-07-29 | E126: 91.72 | F126: 50.25 | G126: 104.9 | H126: 49.8 | I126: 48.5 | J126: 22.025 | K126: 37.265 | L126: 50.66 | M126: 47.02 | N126: 89.38 | O126: 22.1 | P126: 7.24 | Q126: 122.8 | R126: 1.4398 | S126: 0.7855 | T126: 6.2772 | U126: 1.206 | V126: 1.158 | W126: 1.249 | X126: 2.797
D127: 2011-08-05 | E127: 82.63 | F127: 47 | G127: 90.42 | H127: 47.905 | I127: 43.42 | J127: 19.035 | K127: 31.3 | L127: 41.97 | M127: 42.295 | N127: 76.09 | O127: 19.93 | P127: 5.84 | Q127: 106.2 | R127: 1.4282 | S127: 0.7674 | T127: 6.4772 | U127: 0.851 | V127: 0.76 | W127: 0.883 | X127: 2.56
D128: 2011-08-12 | E128: 82.19 | F128: 49.16 | G128: 94.59 | H128: 46.335 | I128: 42.6 | J128: 19.385 | K128: 29.225 | L128: 38.875 | M128: 44.225 | N128: 74.1 | O128: 20.31 | P128: 5.765 | Q128: 109.9 | R128: 1.4248 | S128: 0.7779 | T128: 6.5111 | U128: 0.768 | V128: 0.685 | W128: 0.822 | X128: 2.256
D129: 2011-08-19 | E129: 77.25 | F129: 48.11 | G129: 83.71 | H129: 45.295 | I129: 43.2 | J129: 17.83 | K129: 25.43 | L129: 34.735 | M129: 41.05 | N129: 68.26 | O129: 19.03 | P129: 5.22 | Q129: 98.45 | R129: 1.4397 | S129: 0.7851 | T129: 6.3881 | U129: 0.695 | V129: 0.642 | W129: 0.704 | X129: 2.064
D130: 2011-08-26 | E130: 78.03 | F130: 49.95 | G130: 82.24 | H130: 45.735 | I130: 45.6 | J130: 18.215 | K130: 26.32 | L130: 35.59 | M130: 40.56 | N130: 69.65 | O130: 19.35 | P130: 5.25 | Q130: 107.1 | R130: 1.4499 | S130: 0.8063 | T130: 6.2939 | U130: 0.726 | V130: 0.647 | W130: 0.691 | X130: 2.191
D131: 2011-09-02 | E131: 80.66 | F131: 49.65 | G131: 82.38 | H131: 47.72 | I131: 45.5 | J131: 19.795 | K131: 26.475 | L131: 35.46 | M131: 40.205 | N131: 69.78 | O131: 19.99 | P131: 5.36 | Q131: 109 | R131: 1.4205 | S131: 0.7883 | T131: 6.388 | U131: 0.683 | V131: 0.515 | W131: 0.704 | X131: 1.989
D132: 2011-09-09 | E132: 77.78 | F132: 49.6 | G132: 74.18 | H132: 44.955 | I132: 49.1 | J132: 19.2 | K132: 24.39 | L132: 32.36 | M132: 37.805 | N132: 64.96 | O132: 19.54 | P132: 5.065 | Q132: 100.4 | R132: 1.3656 | S132: 0.8838 | T132: 6.539 | U132: 0.539 | V132: 0.386 | W132: 0.547 | X132: 1.92
D133: 2011-09-16 | E133: 79.73 | F133: 48.7 | G133: 75.41 | H133: 44.81 | I133: 49.1 | J133: 19.78 | K133: 27.44 | L133: 36.395 | M133: 39.53 | N133: 70.08 | O133: 20.19 | P133: 5.81 | Q133: 104.4 | R133: 1.3796 | S133: 0.8756 | T133: 6.6152 | U133: 0.644 | V133: 0.507 | W133: 0.676 | X133: 2.049
D134: 2011-09-23 | E134: 74.92 | F134: 48.5 | G134: 69.09 | H134: 43.67 | I134: 48.5 | J134: 18.675 | K134: 24.65 | L134: 32.405 | M134: 38.605 | N134: 65.53 | O134: 19.48 | P134: 5.155 | Q134: 93.6 | R134: 1.35 | S134: 0.9056 | T134: 6.9347 | U134: 0.498 | V134: 0.389 | W134: 0.562 | X134: 1.834
D135: 2011-09-30 | E135: 78.36 | F135: 50.1 | G135: 71 | H135: 46.2 | I135: 50.8 | J135: 19.98 | K135: 25.07 | L135: 33.63 | M135: 40 | N135: 68.12 | O135: 19.16 | P135: 5.37 | Q135: 99.25 | R135: 1.3387 | S135: 0.9082 | T135: 6.874 | U135: 0.618 | V135: 0.547 | W135: 0.703 | X135: 1.916
D136: 2011-10-07 | E136: 80.38 | F136: 50.5 | G136: 70.25 | H136: 45.59 | I136: 51.95 | J136: 21.74 | K136: 25.66 | L136: 33.98 | M136: 41.23 | N136: 72.05 | O136: 20.07 | P136: 5.63 | Q136: 101.4 | R136: 1.3378 | S136: 0.9272 | T136: 6.8061 | U136: 0.66 | V136: 0.599 | W136: 0.765 | X136: 2.078
D137: 2011-10-14 | E137: 82.66 | F137: 52.1 | G137: 74.73 | H137: 46.305 | I137: 52.2 | J137: 22.095 | K137: 27.475 | L137: 37.82 | M137: 42.96 | N137: 74.84 | O137: 20.97 | P137: 6.4 | Q137: 105.3 | R137: 1.3882 | S137: 0.8915 | T137: 6.591 | U137: 0.681 | V137: 0.659 | W137: 0.847 | X137: 2.249
D138: 2011-10-21 | E138: 82.92 | F138: 51.8 | G138: 73.03 | H138: 47.695 | I138: 51.7 | J138: 21.675 | K138: 27.52 | L138: 36.72 | M138: 44.625 | N138: 74.01 | O138: 21.4 | P138: 6.42 | Q138: 107.6 | R138: 1.3896 | S138: 0.8825 | T138: 6.5566 | U138: 0.858 | V138: 0.659 | W138: 0.827 | X138: 2.22
D139: 2011-10-28 | E139: 86.35 | F139: 51.35 | G139: 77.3 | H139: 50.32 | I139: 50.25 | J139: 22.25 | K139: 31.665 | L139: 39.2 | M139: 44.715 | N139: 78.19 | O139: 21.75 | P139: 6.68 | Q139: 117.7 | R139: 1.4147 | S139: 0.8633 | T139: 6.3855 | U139: 0.809 | V139: 0.601 | W139: 0.777 | X139: 2.318
D140: 2011-11-04 | E140: 83.15 | F140: 50.95 | G140: 68.45 | H140: 48.75 | I140: 49.72 | J140: 20.665 | K140: 29.78 | L140: 34.99 | M140: 43.45 | N140: 74.05 | O140: 20.72 | P140: 6.255 | Q140: 110.8 | R140: 1.3792 | S140: 0.8847 | T140: 6.576 | U140: 0.706 | V140: 0.401 | W140: 0.534 | X140: 2.034
D141: 2011-11-11 | E141: 83.59 | F141: 50.95 | G141: 68.91 | H141: 48.945 | I141: 50.15 | J141: 22.345 | K141: 28.875 | L141: 34.045 | M141: 42.905 | N141: 74.14 | O141: 21.22 | P141: 7.16 | Q141: 110.5 | R141: 1.375 | S141: 0.8995 | T141: 6.6179 | U141: 0.964 | V141: 0.399 | W141: 0.556 | X141: 2.058
D142: 2011-11-18 | E142: 80.57 | F142: 51.95 | G142: 64.83 | H142: 47.525 | I142: 50.15 | J142: 21.34 | K142: 25.975 | L142: 31.62 | M142: 41.175 | N142: 72.01 | O142: 21.22 | P142: 6.695 | Q142: 103 | R142: 1.3525 | S142: 0.9166 | T142: 6.7842 | U142: 0.908 | V142: 0.462 | W142: 0.596 | X142: 2.011
D143: 2011-11-25 | E143: 76.86 | F143: 50.35 | G143: 62.72 | H143: 45.7 | I143: 48.1 | J143: 20.06 | K143: 24.25 | L143: 29.79 | M143: 41.26 | N143: 68.6 | O143: 20.09 | P143: 6.325 | Q143: 95.05 | R143: 1.3239 | S143: 0.93 | T143: 7.0063 | U143: 0.969 | V143: 0.456 | W143: 0.644 | X143: 1.965
D144: 2011-12-02 | E144: 83.51 | F144: 50.95 | G144: 68.81 | H144: 48.45 | I144: 49.69 | J144: 22.565 | K144: 28.74 | L144: 33.93 | M144: 43.385 | N144: 75.16 | O144: 21.43 | P144: 6.95 | Q144: 103.9 | R144: 1.3391 | S144: 0.9214 | T144: 6.7562 | U144: 0.557 | V144: 0.299 | W144: 0.471 | X144: 2.034
D145: 2011-12-09 | E145: 83.47 | F145: 51.6 | G145: 64.33 | H145: 47.86 | I145: 50.9 | J145: 23.12 | K145: 28.475 | L145: 34.16 | M145: 44.11 | N145: 74.75 | O145: 21.42 | P145: 6.825 | Q145: 101 | R145: 1.3386 | S145: 0.923 | T145: 6.7265 | U145: 0.657 | V145: 0.315 | W145: 0.489 | X145: 2.062
D146: 2011-12-16 | E146: 81.18 | F146: 51.2 | G146: 62.96 | H146: 45.99 | I146: 52 | J146: 22.065 | K146: 25.695 | L146: 31.775 | M146: 43.285 | N146: 71.41 | O146: 20.5 | P146: 6.3 | Q146: 96.35 | R146: 1.3046 | S146: 0.9359 | T146: 6.9244 | U146: 0.215 | V146: 0.216 | W146: 0.341 | X146: 1.848
D147: 2011-12-23 | E147: 84 | F147: 53.2 | G147: 63.08 | H147: 47.34 | I147: 53.3 | J147: 23.44 | K147: 26.82 | L147: 34.39 | M147: 44.435 | N147: 72.67 | O147: 21.39 | P147: 6.575 | Q147: 102.1 | R147: 1.3044 | S147: 0.9366 | T147: 6.881 | U147: 0.122 | V147: 0.22 | W147: 0.365 | X147: 2.025
D148: 2011-12-30 | E148: 84.95 | F148: 54 | G148: 63.66 | H148: 48.57 | I148: 53.7 | J148: 23.735 | K148: 26.8 | L148: 33.92 | M148: 44.59 | N148: 73.94 | O148: 21.7 | P148: 6.505 | Q148: 102 | R148: 1.2961 | S148: 0.9381 | T148: 6.8872 | U148: 0.153 | V148: 0.139 | W148: 0.271 | X148: 1.877
D149: 2012-01-06 | E149: 85.98 | F149: 54 | G149: 64.1 | H149: 48.265 | I149: 54.7 | J149: 23.325 | K149: 28.31 | L149: 36.47 | M149: 46.06 | N149: 76.12 | O149: 21.76 | P149: 6.715 | Q149: 107.5 | R149: 1.2717 | S149: 0.9552 | T149: 6.9418 | U149: 0.462 | V149: 0.163 | W149: 0.273 | X149: 1.959
D150: 2012-01-13 | E150: 86.39 | F150: 53.2 | G150: 69.2 | H150: 47.045 | I150: 53 | J150: 21.89 | K150: 29.99 | L150: 37.97 | M150: 44.715 | N150: 75.49 | O150: 23.22 | P150: 6.59 | Q150: 110.6 | R150: 1.268 | S150: 0.9524 | T150: 6.9919 | U150: 0.379 | V150: 0.15 | W150: 0.232 | X150: 1.864
D151: 2012-01-20 | E151: 88.61 | F151: 53.55 | G151: 75.46 | H151: 47.495 | I151: 52.05 | J151: 21.65 | K151: 32.645 | L151: 41.955 | M151: 47.3 | N151: 78.05 | O151: 23.86 | P151: 7.22 | Q151: 116.7 | R151: 1.2931 | S151: 0.9345 | T151: 6.7826 | U151: 0.417 | V151: 0.205 | W151: 0.432 | X151: 2.025
D152: 2012-01-27 | E152: 88.43 | F152: 53.1 | G152: 77 | H152: 46.935 | I152: 49.8 | J152: 21.85 | K152: 33.39 | L152: 42.7 | M152: 47.405 | N152: 72.8 | O152: 24.86 | P152: 7.08 | Q152: 117.9 | R152: 1.322 | S152: 0.9126 | T152: 6.7431 | U152: 0.46 | V152: 0.188 | W152: 0.383 | X152: 1.892
D153: 2012-02-03 | E153: 91.49 | F153: 53.15 | G153: 79.87 | H153: 48.625 | I153: 51.35 | J153: 21.145 | K153: 36.09 | L153: 45.455 | M153: 48.1 | N153: 75.83 | O153: 25.65 | P153: 7.48 | Q153: 120 | R153: 1.3158 | S153: 0.9182 | T153: 6.6783 | U153: 0.397 | V153: 0.201 | W153: 0.403 | X153: 1.923
D154: 2012-02-10 | E154: 90.39 | F154: 53.65 | G154: 78.65 | H154: 48.47 | I154: 51.2 | J154: 20.9 | K154: 36.04 | L154: 46.355 | M154: 46.89 | N154: 74.37 | O154: 25.05 | P154: 7.49 | Q154: 116.9 | R154: 1.3197 | S154: 0.9165 | T154: 6.6618 | U154: 0.404 | V154: 0.236 | W154: 0.41 | X154: 1.987
D155: 2012-02-17 | E155: 91.99 | F155: 55.85 | G155: 86.49 | H155: 49.74 | I155: 52 | J155: 20.695 | K155: 39.795 | L155: 47.785 | M155: 48.7 | N155: 74.4 | O155: 25.82 | P155: 8.16 | Q155: 129.7 | R155: 1.314 | S155: 0.92 | T155: 6.7275 | U155: 0.428 | V155: 0.25 | W155: 0.428 | X155: 2.003
D156: 2012-02-24 | E156: 91.55 | F156: 55.45 | G156: 91 | H156: 50.7 | I156: 51.5 | J156: 20.63 | K156: 39.94 | L156: 47.445 | M156: 47.55 | N156: 75.02 | O156: 25.58 | P156: 7.925 | Q156: 129 | R156: 1.3448 | S156: 0.896 | T156: 6.558 | U156: 0.379 | V156: 0.235 | W156: 0.387 | X156: 1.977
D157: 2012-03-02 | E157: 92.39 | F157: 55.55 | G157: 92.68 | H157: 50.96 | I157: 49.33 | J157: 20.41 | K157: 40.315 | L157: 46.24 | M157: 49.495 | N157: 75.07 | O157: 26.8 | P157: 7.895 | Q157: 130.4 | R157: 1.3198 | S157: 0.9142 | T157: 6.6782 | U157: 0.231 | V157: 0.158 | W157: 0.291 | X157: 1.975
D158: 2012-03-09 | E158: 91.77 | F158: 56.6 | G158: 88.74 | H158: 52.28 | I158: 50 | J158: 19.545 | K158: 41.735 | L158: 46.94 | M158: 51.4 | N158: 74.68 | O158: 27.02 | P158: 7.82 | Q158: 137.1 | R158: 1.3123 | S158: 0.9188 | T158: 6.8027 | U158: 0.218 | V158: 0.156 | W158: 0.276 | X158: 2.029
D159: 2012-03-16 | E159: 94.16 | F159: 57 | G159: 89.2 | H159: 52.97 | I159: 50.15 | J159: 18.845 | K159: 41.99 | L159: 47.23 | M159: 52.93 | N159: 79.71 | O159: 27.37 | P159: 8.99 | Q159: 138.3 | R159: 1.3175 | S159: 0.9156 | T159: 6.7438 | U159: 0.25 | V159: 0.331 | W159: 0.494 | X159: 2.295
D160: 2012-03-23 | E160: 91.84 | F160: 56.4 | G160: 86.2 | H160: 51.18 | I160: 50.1 | J160: 19.24 | K160: 40.3 | L160: 45.49 | M160: 52.95 | N160: 77.36 | O160: 26.62 | P160: 8.825 | Q160: 133.7 | R160: 1.327 | S160: 0.908 | T160: 6.7333 | U160: 0.229 | V160: 0.228 | W160: 0.374 | X160: 2.233
D161: 2012-03-30 | E161: 91 | F161: 56.8 | G161: 88.77 | H161: 52.3 | I161: 49.96 | J161: 18.81 | K161: 39.525 | L161: 45.21 | M161: 54.94 | N161: 75.59 | O161: 27.15 | P161: 8.92 | Q161: 137.6 | R161: 1.3343 | S161: 0.9025 | T161: 6.6147 | U161: 0.234 | V161: 0.204 | W161: 0.324 | X161: 2.211
D162: 2012-04-06 | E162: 89.56 | F162: 55.95 | G162: 87.44 | H162: 51.63 | I162: 50.45 | J162: 18.085 | K162: 37.975 | L162: 42.855 | M162: 53.67 | N162: 73.88 | O162: 26.79 | P162: 9.01 | Q162: 135.7 | R162: 1.3068 | S162: 0.9197 | T162: 6.7432 | U162: 0.247 | V162: 0.138 | W162: 0.247 | X162: 2.055

Sheet Data (restated)
A1: =LEFT(R1,SEARCH(".",R1)-1) & " > " & RIGHT(Q1, LEN(Q1) - SEARCH("]", Q1)) -> FundX VaR > Data (restated) | Q1: =CELL("filename",A1) -> C:\Users\Hugo\Documents\HP ACAD\library\CASEShp\Risk (VaR) - FundX VaR\[HPcase (2012) - Risk (VaR) - FundX VaR.xlsm]Data (restated) | R1: =MID(Q1,FIND(CHAR(127),SUBSTITUTE(Q1,"-",CHAR(127), LEN(Q1)-LEN(SUBSTITUTE(Q1,"-",""))))+2,1024) -> FundX VaR.xlsm]Data (restated)

Sheet Stats
A1: =LEFT(R1,SEARCH(".",R1)-1) & " > " & RIGHT(Q1, LEN(Q1) - SEARCH("]", Q1)) -> FundX VaR > Stats | Q1: =CELL("filename",A1) -> C:\Users\Hugo\Documents\HP ACAD\library\CASEShp\Risk (VaR) - FundX VaR\[HPcase (2012) - Risk (VaR) - FundX VaR.xlsm]Stats | R1: =MID(Q1,FIND(CHAR(127),SUBSTITUTE(Q1,"-",CHAR(127), LEN(Q1)-LEN(SUBSTITUTE(Q1,"-",""))))+2,1024) -> FundX VaR.xlsm]Stats

Sheet VarCovar
A1: =LEFT(S1,SEARCH(".",S1)-1) & " > " & RIGHT(R1, LEN(R1) - SEARCH("]", R1)) -> FundX VaR > VarCovar | R1: =CELL("filename",A1) -> C:\Users\Hugo\Documents\HP ACAD\library\CASEShp\Risk (VaR) - FundX VaR\[HPcase (2012) - Risk (VaR) - FundX VaR.xlsm]VarCovar | S1: =MID(R1,FIND(CHAR(127),SUBSTITUTE(R1,"-",CHAR(127), LEN(R1)-LEN(SUBSTITUTE(R1,"-",""))))+2,1024) -> FundX VaR.xlsm]VarCovar
B3: 1 | C3: Mapping
H4: Put here the risk sources and map the values in EUR to them! (the length of the line does not correspond necessarily to the number of them…)
D5: Asset | E5: Description | F5: VALUE
D6: 1 | E6: Fund replicating the MSCI Europe Index | F6: =Fund!K6 -> 1000
D7: 2 | E7: Nestlé | F7: =Fund!K7 -> 1024.159174
D8: 3 | E8: Solvay | F8: =Fund!K8 -> 1049.28
D9: 4 | E9: Danone | F9: =Fund!K9 -> 1032.6
D10: 5 | E10: Novartis | F10: =Fund!K10 -> 1049.411616
D11: 6 | E11: Repsol | F11: =Fund!K11 -> 1030.845
D12: 7 | E12: Renault | F12: =Fund!K12 -> 1025.325
D13: 8 | E13: Daimler | F13: =Fund!K13 -> 1028.52
D14: 9 | E14: Henkel | F14: =Fund!K14 -> 1019.73
D15: 10 | E15: Siemens | F15: =Fund!K15 -> 1034.32
D16: 11 | E16: Luxxotica | F16: =Fund!K16 -> 1018.02
D17: 12 | E17: Pirelli | F17: =Fund!K17 -> 1036.15
D18: 13 | E18: Scania | F18: =Fund!K18 -> 1000.963031
D19: 14 | E19: EU ECB Bonds 3% (coupon) maturity 6.04.2014 | F19: =Fund!K19 -> 1082.248703
D20: 15 | E20: US Treasury 10y 0-coupon bonds | F20: =Fund!K20 -> 1248.757183
F22: Sums by risk source
B24: 2 | C24: Statistics
B45: 3 | C45: Var-covar matrix
B64: 4 | C64: Var calculation(s)

Sheet Historical simulations
A1: =LEFT(R1,SEARCH(".",R1)-1) & " > " & RIGHT(Q1, LEN(Q1) - SEARCH("]", Q1)) -> FundX VaR > Historical simulations | Q1: =CELL("filename",A1) -> C:\Users\Hugo\Documents\HP ACAD\library\CASEShp\Risk (VaR) - FundX VaR\[HPcase (2012) - Risk (VaR) - FundX VaR.xlsm]Historical simulations | R1: =MID(Q1,FIND(CHAR(127),SUBSTITUTE(Q1,"-",CHAR(127), LEN(Q1)-LEN(SUBSTITUTE(Q1,"-",""))))+2,1024) -> FundX VaR.xlsm]Historical simulations
B3: 1 | C3: Current values…
D5: Asset | E5: =TRANSPOSE(VarCovar!D6:F20) -> 1 | F5: 2 | G5: 3 | H5: 4 | I5: 5 | J5: 6 | K5: 7 | L5: 8 | M5: 9 | N5: 10 | O5: 11 | P5: 12 | Q5: 13 | R5: 14 | S5: 15
D6: Description | E6: Fund replicating the MSCI Europe Index | F6: Nestlé | G6: Solvay | H6: Danone | I6: Novartis | J6: Repsol | K6: Renault | L6: Daimler | M6: Henkel | N6: Siemens | O6: Luxxotica | P6: Pirelli | Q6: Scania | R6: EU ECB Bonds 3% (coupon) maturity 6.04.2014 | S6: US Treasury 10y 0-coupon bonds | T6: TOTAL
D7: VALUE | E7: 1000 | F7: 1024.159174 | G7: 1049.28 | H7: 1032.6 | I7: 1049.411616 | J7: 1030.845 | K7: 1025.325 | L7: 1028.52 | M7: 1019.73 | N7: 1034.32 | O7: 1018.02 | P7: 1036.15 | Q7: 1000.963031 | R7: 1082.248703 | S7: 1248.757183 | T7: =SUM(E7:S7) -> 15680.32971
B9: 2 | C9: Scenarios
C10: (scroll-down for step 3)
C11: 1
C12: 2
C13: 3
C14: 4
C15: 5
C16: 6
C17: 7
C18: 8
C19: 9
C20: 10
C21: 11
C22: 12
C23: 13
C24: 14
C25: 15
C26: 16
C27: 17
C28: 18
C29: 19
C30: 20
C31: 21
C32: 22
C33: 23
C34: 24
C35: 25
C36: 26
C37: 27
C38: 28
C39: 29
C40: 30
C41: 31
C42: 32
C43: 33
C44: 34
C45: 35
C46: 36
C47: 37
C48: 38
C49: 39
C50: 40
C51: 41
C52: 42
C53: 43
C54: 44
C55: 45
C56: 46
C57: 47
C58: 48
C59: 49
C60: 50
C61: 51
C62: 52
C63: 53
C64: 54
C65: 55
C66: 56
C67: 57
C68: 58
C69: 59
C70: 60
C71: 61
C72: 62
C73: 63
C74: 64
C75: 65
C76: 66
C77: 67
C78: 68
C79: 69
C80: 70
C81: 71
C82: 72
C83: 73
C84: 74
C85: 75
C86: 76
C87: 77
C88: 78
C89: 79
C90: 80
C91: 81
C92: 82
C93: 83
C94: 84
C95: 85
C96: 86
C97: 87
C98: 88
C99: 89
C100: 90
C101: 91
C102: 92
C103: 93
C104: 94
C105: 95
C106: 96
C107: 97
C108: 98
C109: 99
C110: 100
C111: 101
C112: 102
C113: 103
C114: 104
C115: 105
C116: 106
C117: 107
C118: 108
C119: 109
C120: 110
C121: 111
C122: 112
C123: 113
C124: 114
C125: 115
C126: 116
C127: 117
C128: 118
C129: 119
C130: 120
C131: 121
C132: 122
C133: 123
C134: 124
C135: 125
C136: 126
C137: 127
C138: 128
C139: 129
C140: 130
C141: 131
C142: 132
C143: 133
C144: 134
C145: 135
C146: 136
C147: 137
C148: 138
C149: 139
C150: 140
C151: 141
C152: 142
C153: 143
C154: 144
C155: 145
C156: 146
C157: 147
C158: 148
C159: 149
C160: 150
C161: 151
C162: 152
C163: 153
C164: 154
C165: 155
C166: 156
B168: 3 | C168: VaR calculation(s)

Sheet MC simulations (random data)
A1: =LEFT(R1,SEARCH(".",R1)-1) & " > " & RIGHT(Q1, LEN(Q1) - SEARCH("]", Q1)) -> FundX VaR > MC simulations (random data) | Q1: =CELL("filename",A1) -> C:\Users\Hugo\Documents\HP ACAD\library\CASEShp\Risk (VaR) - FundX VaR\[HPcase (2012) - Risk (VaR) - FundX VaR.xlsm]MC simulations (random data) | R1: =MID(Q1,FIND(CHAR(127),SUBSTITUTE(Q1,"-",CHAR(127), LEN(Q1)-LEN(SUBSTITUTE(Q1,"-",""))))+2,1024) -> FundX VaR.xlsm]MC simulations (random data)
B3: 0 | C3: Explanations
D4: The following two sheets are "free" in the sense that it is difficult beforehand to imagine how many columns each group will be using, etc…
D5: But remember these steps:
C6: a | D6: Identify the risk sources (and use interest rates as risk sources, not bond prices!)
C7: b | D7: Generate random series for each risk source (the number of simulations is up to you).
C8: c | D8: Use the "MSQRT" function on the correlation matrix to understand how to compound these first random series into
D9: "correlated randoms".
C10: d | D10: Use the statistics computed before to generate the right simulations (rightly centered and scaled)
D11: You can use the following formulas, to remain simple:
D12: For stocks, indices, FX rates: | E12: dln(S)=(mu-.5*sigma^2)*dt+sigma*sqrt(dt)*dZ
D13: For interest rates: | E13: dr=mu*dt+sigma*sqrt(dt)*dZ
D14: For interest rates, this is quite "rough" since we don't care about the term structure coherence and about the mean reversion behaviour of rates. Also, it does not preclude negative interest rates (so, you can put maybe a floor in your simulations, but this is "cooking")
D15: For FX rates, this is also reductory since we know there is a mean reverting effect as well.
D16: [we will see quickly how do we complement this in practice…but that does not change the overall method…]
C18: Feel free to re-organise thse two sheets as you wish and to add more of them is required (for MC only)

Sheet MC simulations (calculations)
A1: =LEFT(R1,SEARCH(".",R1)-1) & " > " & RIGHT(Q1, LEN(Q1) - SEARCH("]", Q1)) -> FundX VaR > MC simulations (calculations) | Q1: =CELL("filename",A1) -> C:\Users\Hugo\Documents\HP ACAD\library\CASEShp\Risk (VaR) - FundX VaR\[HPcase (2012) - Risk (VaR) - FundX VaR.xlsm]MC simulations (calculations) | R1: =MID(Q1,FIND(CHAR(127),SUBSTITUTE(Q1,"-",CHAR(127), LEN(Q1)-LEN(SUBSTITUTE(Q1,"-",""))))+2,1024) -> FundX VaR.xlsm]MC simulations (calculations)
